[Event "*** Titled Tuesday Blitz"]
[Site "Chess.com"]
[Date "2021.02.02"]
[Round "3"]
[White "barbara25"]
[Black "GCamachoMartinez"]
[Result "0-1"]
[WhiteElo "2252"]
[BlackElo "2429"]
[TimeControl "180+1"]
[EndTime "10:30:33 PST"]
[Termination "GCamachoMartinez won by resignation"]

1. e4 {[%clk 0:03:00.9]} 1... c5 {[%clk 0:02:59.7]} 2. Nf3 {[%clk 0:02:57.9]}
2... d6 {[%clk 0:02:59.6]} 3. d4 {[%clk 0:02:56.6]} 3... cxd4 {[%clk 0:03:00.5]}
4. Nxd4 {[%clk 0:02:57.1]} 4... Nf6 {[%clk 0:03:00.2]} 5. Nc3 {[%clk 0:02:56.3]}
5... g6 {[%clk 0:03:00.7]} 6. Be3 {[%clk 0:02:54.9]} 6... Bg7 {[%clk 0:03:00.5]}
7. Qd2 {[%clk 0:02:55.4]} 7... Nc6 {[%clk 0:02:55.2]} 8. O-O-O {[%clk
0:02:55.1]} 8... Ng4 {[%clk 0:02:39.1]} 9. Nxc6 {[%clk 0:02:52.5]} 9... bxc6
{[%clk 0:02:38.1]} 10. Bg5 {[%clk 0:02:52.4]} 10... Qa5 {[%clk 0:02:24.5]} 11.
Bc4 {[%clk 0:02:24.5]} 11... Be6 {[%clk 0:02:06.8]} 12. Bb3 {[%clk 0:02:17.8]}
12... Nxf2 {[%clk 0:01:56.1]} 13. Qxf2 {[%clk 0:02:10.6]} 13... Qxg5+ {[%clk
0:01:55.1]} 14. Kb1 {[%clk 0:02:10.9]} 14... Bxb3 {[%clk 0:01:48.3]} 15. cxb3
{[%clk 0:02:08.7]} 15... O-O {[%clk 0:01:47]} 16. h4 {[%clk 0:02:06.9]} 16...
Qe5 {[%clk 0:01:41.6]} 17. Qc2 {[%clk 0:02:06.2]} 17... a5 {[%clk 0:01:36.4]}
18. g4 {[%clk 0:02:05]} 18... Rfb8 {[%clk 0:01:21.1]} 19. Rh3 {[%clk 0:01:55.6]}
19... Rb5 {[%clk 0:01:07.9]} 20. Nxb5 {[%clk 0:01:54.6]} 20... cxb5 {[%clk
0:01:06.4]} 21. h5 {[%clk 0:01:52.6]} 21... Qe6 {[%clk 0:00:57.3]} 22. hxg6
{[%clk 0:01:51.4]} 22... hxg6 {[%clk 0:00:55.9]} 23. Rdh1 {[%clk 0:01:49.2]}
23... Rc8 {[%clk 0:00:49.4]} 24. Qh2 {[%clk 0:01:48.8]} 24... Qxe4+ {[%clk
0:00:19]} 25. Ka1 {[%clk 0:01:47.5]} 25... f5 {[%clk 0:00:13.5]} 26. gxf5 {[%clk
0:01:44.1]} 26... gxf5 {[%clk 0:00:13.4]} 27. Rg1 {[%clk 0:01:40.1]} 27... Rc2
{[%clk 0:00:12.4]} 28. Qg3 {[%clk 0:01:12]} 28... Qd4 {[%clk 0:00:11.3]} 29. Rb1
{[%clk 0:00:59.6]} 29... Rxb2 {[%clk 0:00:10]} 0-1

[Event "*** Titled Tuesday Blitz"]
[Site "Chess.com"]
[Date "2021.02.02"]
[Round "3"]
[White "Gnechko_Ruslan"]
[Black "K_A_S_T_O_R"]
[Result "0-1"]
[WhiteElo "2508"]
[BlackElo "2753"]
[TimeControl "180+1"]
[EndTime "10:30:34 PST"]
[Termination "K_A_S_T_O_R won by checkmate"]

1. e4 {[%clk 0:03:00.9]} 1... c5 {[%clk 0:02:59.8]} 2. Nf3 {[%clk 0:03:00.3]}
2... d6 {[%clk 0:03:00]} 3. d4 {[%clk 0:03:01]} 3... cxd4 {[%clk 0:03:00.5]} 4.
Nxd4 {[%clk 0:03:01.9]} 4... Nf6 {[%clk 0:03:00.6]} 5. Nc3 {[%clk 0:03:02.6]}
5... a6 {[%clk 0:03:01]} 6. Be3 {[%clk 0:03:00.7]} 6... e6 {[%clk 0:02:59.1]} 7.
g4 {[%clk 0:03:00.6]} 7... h6 {[%clk 0:02:58.5]} 8. h3 {[%clk 0:02:59.5]} 8...
b5 {[%clk 0:02:55.3]} 9. Bg2 {[%clk 0:02:59.3]} 9... Bb7 {[%clk 0:02:55.4]} 10.
a3 {[%clk 0:02:59.7]} 10... g5 {[%clk 0:02:53.4]} 11. Qe2 {[%clk 0:02:59.6]}
11... Nbd7 {[%clk 0:02:53.4]} 12. O-O-O {[%clk 0:03:00.1]} 12... Rc8 {[%clk
0:02:52.7]} 13. f4 {[%clk 0:02:56.5]} 13... Rxc3 {[%clk 0:02:50.4]} 14. bxc3
{[%clk 0:02:55.8]} 14... gxf4 {[%clk 0:02:50.5]} 15. Bxf4 {[%clk 0:02:55.6]}
15... Qc7 {[%clk 0:02:37.8]} 16. Nb3 {[%clk 0:02:02.2]} 16... Ne5 {[%clk
0:02:28.7]} 17. Bxe5 {[%clk 0:02:00.5]} 17... dxe5 {[%clk 0:02:28.5]} 18. Kb2
{[%clk 0:02:00.4]} 18... Nd7 {[%clk 0:02:27.2]} 19. Rhf1 {[%clk 0:01:55.8]}
19... Nb6 {[%clk 0:02:25.5]} 20. Qd3 {[%clk 0:01:04.1]} 20... Na4+ {[%clk
0:01:59.1]} 21. Ka1 {[%clk 0:01:03]} 21... Bxa3 {[%clk 0:01:51.5]} 22. Rxf7
{[%clk 0:00:39.4]} 22... Kxf7 {[%clk 0:01:19.9]} 23. Qd7+ {[%clk 0:00:38.6]}
23... Qxd7 {[%clk 0:01:20.1]} 24. Rxd7+ {[%clk 0:00:39.5]} 24... Kf6 {[%clk
0:01:18.4]} 25. Rxb7 {[%clk 0:00:40.4]} 25... Rd8 {[%clk 0:01:17]} 26. Bf3
{[%clk 0:00:37.7]} 26... Nxc3 {[%clk 0:01:11.8]} 27. h4 {[%clk 0:00:28.3]} 27...
Kg6 {[%clk 0:00:59.1]} 28. Rc7 {[%clk 0:00:19.5]} 28... b4 {[%clk 0:00:56.6]}
29. Rc6 {[%clk 0:00:18.5]} 29... Rf8 {[%clk 0:00:55.1]} 30. Rxe6+ {[%clk
0:00:15.9]} 30... Kg7 {[%clk 0:00:55.1]} 31. Bg2 {[%clk 0:00:04.7]} 31... Rf2
{[%clk 0:00:54.4]} 32. Bh3 {[%clk 0:00:03.5]} 32... Rxc2 {[%clk 0:00:51.5]} 33.
g5 {[%clk 0:00:02.1]} 33... Ra2# {[%clk 0:00:50.4]} 0-1

[Event "*** Titled Tuesday Blitz"]
[Site "Chess.com"]
[Date "2021.02.02"]
[Round "3"]
[White "Synctel"]
[Black "utsavp"]
[Result "0-1"]
[WhiteElo "2003"]
[BlackElo "2303"]
[TimeControl "180+1"]
[EndTime "10:30:35 PST"]
[Termination "utsavp won by resignation"]

1. e4 {[%clk 0:03:00.9]} 1... c5 {[%clk 0:02:50.4]} 2. Ne2 {[%clk 0:02:57.1]}
2... a6 {[%clk 0:02:49.8]} 3. g3 {[%clk 0:02:56.4]} 3... Nc6 {[%clk 0:02:49.1]}
4. Bg2 {[%clk 0:02:57]} 4... b5 {[%clk 0:02:48.4]} 5. c3 {[%clk 0:02:53.4]} 5...
Bb7 {[%clk 0:02:48.3]} 6. d4 {[%clk 0:02:53.4]} 6... cxd4 {[%clk 0:02:48.1]} 7.
cxd4 {[%clk 0:02:54.3]} 7... d6 {[%clk 0:02:47.2]} 8. O-O {[%clk 0:02:49.5]}
8... e6 {[%clk 0:02:46.5]} 9. a3 {[%clk 0:02:35.9]} 9... Nf6 {[%clk 0:02:45.2]}
10. Nbc3 {[%clk 0:02:35.6]} 10... Be7 {[%clk 0:02:43.7]} 11. h3 {[%clk 0:02:27]}
11... O-O {[%clk 0:02:42.9]} 12. Be3 {[%clk 0:02:26.5]} 12... d5 {[%clk
0:02:42.1]} 13. exd5 {[%clk 0:02:13.6]} 13... exd5 {[%clk 0:02:37.5]} 14. Nf4
{[%clk 0:02:10.6]} 14... Na5 {[%clk 0:02:36.7]} 15. g4 {[%clk 0:01:58.6]} 15...
Nc4 {[%clk 0:02:35.1]} 16. g5 {[%clk 0:01:23.5]} 16... Nxe3 {[%clk 0:02:31.8]}
17. fxe3 {[%clk 0:01:22.7]} 17... Ne4 {[%clk 0:02:31.7]} 18. Nxe4 {[%clk
0:01:19.9]} 18... dxe4 {[%clk 0:02:30.9]} 19. h4 {[%clk 0:01:15.2]} 19... Rc8
{[%clk 0:02:29.3]} 20. Qb3 {[%clk 0:01:07.5]} 20... Qc7 {[%clk 0:02:02.4]} 21.
Nd5 {[%clk 0:01:02.4]} 21... Bxd5 {[%clk 0:01:55.4]} 22. Qxd5 {[%clk 0:01:03.3]}
22... Qg3 {[%clk 0:01:53.2]} 23. Qxe4 {[%clk 0:01:01.4]} 23... Bd6 {[%clk
0:01:52.2]} 24. Rf3 {[%clk 0:00:56.7]} 24... Qh2+ {[%clk 0:01:49.9]} 25. Kf2
{[%clk 0:00:57.1]} 25... Rfe8 {[%clk 0:01:46.5]} 26. Qf5 {[%clk 0:00:48.7]}
26... Qxh4+ {[%clk 0:01:44.3]} 27. Kg1 {[%clk 0:00:48.7]} 27... Rc7 {[%clk
0:01:38.8]} 28. Rh3 {[%clk 0:00:44.6]} 28... g6 {[%clk 0:01:31.1]} 29. Qd5
{[%clk 0:00:42.1]} 29... Qg4 {[%clk 0:01:26]} 30. Rf1 {[%clk 0:00:38.8]} 30...
Bf8 {[%clk 0:01:21.4]} 31. Rhf3 {[%clk 0:00:36.4]} 31... Qe6 {[%clk 0:01:17.9]}
32. Qxe6 {[%clk 0:00:27.1]} 32... Rxe6 {[%clk 0:01:17.2]} 33. d5 {[%clk
0:00:24.3]} 33... Rd6 {[%clk 0:01:15.2]} 34. e4 {[%clk 0:00:24.3]} 34... Bg7
{[%clk 0:01:13.3]} 35. Rd3 {[%clk 0:00:17.8]} 35... Be5 {[%clk 0:01:12]} 36. b4
{[%clk 0:00:16.8]} 36... Kg7 {[%clk 0:01:11.5]} 37. Bh3 {[%clk 0:00:12.9]} 37...
Rd8 {[%clk 0:01:09.9]} 38. Rff3 {[%clk 0:00:12.1]} 38... Rc2 {[%clk 0:01:06.6]}
0-1

[Event "*** Titled Tuesday Blitz"]
[Site "Chess.com"]
[Date "2021.02.02"]
[Round "3"]
[White "kasparicy"]
[Black "Gulkov_Igor"]
[Result "1-0"]
[WhiteElo "2335"]
[BlackElo "2503"]
[TimeControl "180+1"]
[EndTime "10:30:36 PST"]
[Termination "kasparicy won by resignation"]

1. e4 {[%clk 0:03:00.9]} 1... c5 {[%clk 0:02:58.8]} 2. Nf3 {[%clk 0:03:00.6]}
2... d6 {[%clk 0:02:58.5]} 3. d4 {[%clk 0:02:59.4]} 3... cxd4 {[%clk 0:02:57.8]}
4. Nxd4 {[%clk 0:03:00.3]} 4... Nf6 {[%clk 0:02:57.3]} 5. Nc3 {[%clk 0:03:00.7]}
5... a6 {[%clk 0:02:57]} 6. Qf3 {[%clk 0:02:58]} 6... Nbd7 {[%clk 0:02:55.7]} 7.
g4 {[%clk 0:02:57.1]} 7... Ne5 {[%clk 0:02:54.4]} 8. Qg2 {[%clk 0:02:57.3]} 8...
Nexg4 {[%clk 0:02:51.2]} 9. h3 {[%clk 0:02:56.5]} 9... Ne5 {[%clk 0:02:49.8]}
10. f4 {[%clk 0:02:56.7]} 10... Nc6 {[%clk 0:02:49.1]} 11. Be3 {[%clk
0:02:56.7]} 11... e5 {[%clk 0:02:32.4]} 12. Nb3 {[%clk 0:02:42]} 12... exf4
{[%clk 0:02:04]} 13. Bxf4 {[%clk 0:02:42.9]} 13... Be6 {[%clk 0:02:03.5]} 14.
O-O-O {[%clk 0:02:42.7]} 14... Qb6 {[%clk 0:01:59.7]} 15. Nd5 {[%clk 0:02:30.1]}
15... Bxd5 {[%clk 0:01:57.9]} 16. exd5 {[%clk 0:02:31]} 16... Ne5 {[%clk
0:01:57.8]} 17. Kb1 {[%clk 0:02:24.4]} 17... g6 {[%clk 0:01:55.4]} 18. h4 {[%clk
0:02:04.6]} 18... Nh5 {[%clk 0:01:35.8]} 19. Bxe5 {[%clk 0:01:52.1]} 19... dxe5
{[%clk 0:01:35.1]} 20. Be2 {[%clk 0:01:38.3]} 20... Nf4 {[%clk 0:01:33.7]} 21.
Qg5 {[%clk 0:01:11.1]} 21... f6 {[%clk 0:01:31.4]} 22. Qg4 {[%clk 0:01:09.9]}
22... Bd6 {[%clk 0:01:30]} 23. h5 {[%clk 0:01:06.8]} 23... Ke7 {[%clk
0:01:17.1]} 24. Nd2 {[%clk 0:00:47.8]} 24... Qe3 {[%clk 0:01:11.7]} 25. Bd3
{[%clk 0:00:36.7]} 25... f5 {[%clk 0:00:48.2]} 26. Qg5+ {[%clk 0:00:36.2]} 26...
Kd7 {[%clk 0:00:48.1]} 27. Nc4 {[%clk 0:00:32.8]} 27... Qc5 {[%clk 0:00:46.5]}
28. Qf6 {[%clk 0:00:32.4]} 28... Rhe8 {[%clk 0:00:28.2]} 29. hxg6 {[%clk
0:00:30.4]} 29... hxg6 {[%clk 0:00:27.5]} 30. Rh7+ {[%clk 0:00:30.6]} 30... Kc8
{[%clk 0:00:23]} 31. Nxd6+ {[%clk 0:00:30.2]} 1-0

[Event "*** Titled Tuesday Blitz"]
[Site "Chess.com"]
[Date "2021.02.02"]
[Round "3"]
[White "KeithArkell"]
[Black "GMJustin"]
[Result "0-1"]
[WhiteElo "2430"]
[BlackElo "2309"]
[TimeControl "180+1"]
[EndTime "10:30:39 PST"]
[Termination "GMJustin won by resignation"]

1. d4 {[%clk 0:03:00.9]} 1... Nf6 {[%clk 0:02:59.4]} 2. Nf3 {[%clk 0:03:00]}
2... g6 {[%clk 0:02:57.3]} 3. c4 {[%clk 0:02:59.8]} 3... Bg7 {[%clk 0:02:54.4]}
4. g3 {[%clk 0:03:00.1]} 4... d5 {[%clk 0:02:46.7]} 5. cxd5 {[%clk 0:02:56.3]}
5... Nxd5 {[%clk 0:02:45.1]} 6. Bg2 {[%clk 0:02:55.9]} 6... Nb6 {[%clk
0:02:40.8]} 7. Nc3 {[%clk 0:02:55.7]} 7... Nc6 {[%clk 0:02:39.6]} 8. e3 {[%clk
0:02:55]} 8... O-O {[%clk 0:02:30.5]} 9. O-O {[%clk 0:02:53.5]} 9... a5 {[%clk
0:02:11.5]} 10. b3 {[%clk 0:02:28.9]} 10... e5 {[%clk 0:01:49.4]} 11. Nxe5
{[%clk 0:02:26.1]} 11... Nxe5 {[%clk 0:01:45.7]} 12. dxe5 {[%clk 0:02:26.3]}
12... Bxe5 {[%clk 0:01:37.6]} 13. Bb2 {[%clk 0:02:26.1]} 13... Qxd1 {[%clk
0:01:16.2]} 14. Rfxd1 {[%clk 0:02:24.3]} 14... c6 {[%clk 0:01:07.2]} 15. Rd2
{[%clk 0:02:22.9]} 15... Be6 {[%clk 0:00:55.6]} 16. Ne4 {[%clk 0:02:21.7]} 16...
Bxb2 {[%clk 0:00:47.1]} 17. Rxb2 {[%clk 0:02:22.6]} 17... Rad8 {[%clk
0:00:36.1]} 18. Nc5 {[%clk 0:02:20.7]} 18... Bc8 {[%clk 0:00:35.6]} 19. Rc1
{[%clk 0:02:18.2]} 19... Nd7 {[%clk 0:00:22.6]} 20. h4 {[%clk 0:02:10.6]} 20...
Nxc5 {[%clk 0:00:13.9]} 21. Rxc5 {[%clk 0:02:11.5]} 21... Rd1+ {[%clk
0:00:11.8]} 22. Kh2 {[%clk 0:02:11.7]} 22... a4 {[%clk 0:00:09.8]} 23. bxa4
{[%clk 0:02:10.7]} 23... Rfd8 {[%clk 0:00:09.6]} 24. a5 {[%clk 0:02:06.6]} 24...
R8d2 {[%clk 0:00:04.5]} 25. Rcc2 {[%clk 0:02:04.4]} 25... Rxc2 {[%clk
0:00:04.2]} 26. Rxc2 {[%clk 0:02:05.3]} 26... Bf5 {[%clk 0:00:01.3]} 27. Rb2
{[%clk 0:02:04.2]} 27... Rb1 {[%clk 0:00:01.1]} 28. Rxb1 {[%clk 0:02:02]} 28...
Bxb1 {[%clk 0:00:01.2]} 29. a3 {[%clk 0:01:56.6]} 29... Bd3 {[%clk 0:00:01.4]}
30. Kg1 {[%clk 0:01:52.9]} 30... Kf8 {[%clk 0:00:02]} 31. Bf1 {[%clk 0:01:52.7]}
31... Bxf1 {[%clk 0:00:01.3]} 32. Kxf1 {[%clk 0:01:53.6]} 32... Ke7 {[%clk
0:00:01.4]} 33. Ke2 {[%clk 0:01:54.2]} 33... Kd6 {[%clk 0:00:01.7]} 34. Kd3
{[%clk 0:01:54.8]} 34... Kc5 {[%clk 0:00:01.9]} 35. Ke4 {[%clk 0:01:54.5]} 35...
Kb5 {[%clk 0:00:01.8]} 36. Kd4 {[%clk 0:01:42.1]} 36... Kxa5 {[%clk 0:00:02.1]}
37. Kc3 {[%clk 0:01:42.5]} 37... Ka4 {[%clk 0:00:02.1]} 38. Kb2 {[%clk
0:01:42.6]} 38... b5 {[%clk 0:00:01.7]} 39. e4 {[%clk 0:01:43.5]} 39... b4
{[%clk 0:00:01.7]} 40. axb4 {[%clk 0:01:40.2]} 40... Kxb4 {[%clk 0:00:02.4]} 41.
f4 {[%clk 0:01:41]} 41... Kc4 {[%clk 0:00:02.6]} 42. e5 {[%clk 0:01:41]} 42...
Kd5 {[%clk 0:00:02.8]} 43. Kc3 {[%clk 0:01:41.3]} 43... Ke4 {[%clk 0:00:02.8]}
44. Kc4 {[%clk 0:01:41.4]} 44... Kf3 {[%clk 0:00:02.9]} 45. Kc5 {[%clk
0:01:36.8]} 45... Kxg3 {[%clk 0:00:03.1]} 46. Kxc6 {[%clk 0:01:35.5]} 46... Kxf4
{[%clk 0:00:03.4]} 47. Kd6 {[%clk 0:01:36.1]} 47... Kf5 {[%clk 0:00:03.4]} 48.
Ke7 {[%clk 0:01:27.5]} 48... Kxe5 {[%clk 0:00:03.1]} 49. Kxf7 {[%clk 0:01:27.9]}
49... Kf5 {[%clk 0:00:03.3]} 50. Kg7 {[%clk 0:01:28.2]} 50... h5 {[%clk
0:00:02.9]} 51. Kh6 {[%clk 0:01:28.1]} 51... Kg4 {[%clk 0:00:02.6]} 52. Kxg6
{[%clk 0:01:28.4]} 52... Kxh4 {[%clk 0:00:03]} 53. Kf5 {[%clk 0:01:29.3]} 53...
Kg3 {[%clk 0:00:03.3]} 0-1

[Event "*** Titled Tuesday Blitz"]
[Site "Chess.com"]
[Date "2021.02.02"]
[Round "3"]
[White "Camels1981"]
[Black "CSB7"]
[Result "0-1"]
[WhiteElo "2268"]
[BlackElo "2590"]
[TimeControl "180+1"]
[EndTime "10:30:40 PST"]
[Termination "CSB7 won by checkmate"]

1. e4 {[%clk 0:03:00.9]} 1... c5 {[%clk 0:02:59.7]} 2. Nf3 {[%clk 0:02:54.7]}
2... e6 {[%clk 0:02:59.8]} 3. Be2 {[%clk 0:02:53.4]} 3... Nc6 {[%clk 0:02:57.2]}
4. O-O {[%clk 0:02:52.1]} 4... Nf6 {[%clk 0:02:56.1]} 5. Nc3 {[%clk 0:02:51.4]}
5... d5 {[%clk 0:02:43.8]} 6. exd5 {[%clk 0:02:48.6]} 6... Nxd5 {[%clk
0:02:41.9]} 7. Nxd5 {[%clk 0:02:47.5]} 7... Qxd5 {[%clk 0:02:39.3]} 8. d3 {[%clk
0:02:47.6]} 8... Be7 {[%clk 0:02:39.1]} 9. Be3 {[%clk 0:02:46.8]} 9... O-O
{[%clk 0:02:38.7]} 10. Nd2 {[%clk 0:02:47.2]} 10... b6 {[%clk 0:02:35.5]} 11.
Bf3 {[%clk 0:02:47]} 11... Qd7 {[%clk 0:02:33.9]} 12. Nc4 {[%clk 0:02:30.3]}
12... Bb7 {[%clk 0:02:33.6]} 13. Re1 {[%clk 0:02:28]} 13... Bf6 {[%clk
0:02:28.9]} 14. Qc1 {[%clk 0:02:26.2]} 14... Rad8 {[%clk 0:02:08.9]} 15. Bg5
{[%clk 0:02:25.9]} 15... Bxg5 {[%clk 0:02:06.6]} 16. Qxg5 {[%clk 0:02:24.8]}
16... Nd4 {[%clk 0:02:06.9]} 17. Bxb7 {[%clk 0:02:22.6]} 17... Qxb7 {[%clk
0:02:06.7]} 18. Rac1 {[%clk 0:02:22.4]} 18... Rd5 {[%clk 0:02:01.6]} 19. Qg3
{[%clk 0:02:20.5]} 19... Rfd8 {[%clk 0:01:49.6]} 20. Re4 {[%clk 0:02:20.3]}
20... Rf5 {[%clk 0:01:30.3]} 21. c3 {[%clk 0:02:02.8]} 21... Qxe4 {[%clk
0:01:23.4]} 22. dxe4 {[%clk 0:01:52.8]} 22... Ne2+ {[%clk 0:01:23.4]} 23. Kf1
{[%clk 0:01:53.2]} 23... Nxg3+ {[%clk 0:01:22.8]} 24. hxg3 {[%clk 0:01:53.7]}
24... Rh5 {[%clk 0:01:13.9]} 25. Ke2 {[%clk 0:01:53.7]} 25... Kf8 {[%clk
0:01:12.7]} 26. f4 {[%clk 0:01:50.2]} 26... Ke7 {[%clk 0:01:06.1]} 27. g4 {[%clk
0:01:50.3]} 27... Rh4 {[%clk 0:00:53.3]} 28. Ne3 {[%clk 0:01:43.9]} 28... h5
{[%clk 0:00:48.4]} 29. Kf3 {[%clk 0:01:39.2]} 29... hxg4+ {[%clk 0:00:48.3]} 30.
Kg3 {[%clk 0:01:39.1]} 30... Rhh8 {[%clk 0:00:47.1]} 31. Nxg4 {[%clk 0:01:35.4]}
31... Rd2 {[%clk 0:00:46.6]} 32. Ne5 {[%clk 0:01:34.5]} 32... Rc8 {[%clk
0:00:33.7]} 33. Kf3 {[%clk 0:01:32.1]} 33... Rxb2 {[%clk 0:00:32.1]} 34. Rd1
{[%clk 0:01:31.7]} 34... Rc7 {[%clk 0:00:30.4]} 35. g4 {[%clk 0:01:31.5]} 35...
Rxa2 {[%clk 0:00:30]} 36. f5 {[%clk 0:01:31.8]} 36... Rc2 {[%clk 0:00:24.1]} 37.
c4 {[%clk 0:01:29.4]} 37... a5 {[%clk 0:00:12.9]} 38. Rb1 {[%clk 0:01:28.8]}
38... a4 {[%clk 0:00:11.8]} 39. Rxb6 {[%clk 0:01:27.4]} 39... a3 {[%clk
0:00:11.2]} 40. Ra6 {[%clk 0:01:27.5]} 40... a2 {[%clk 0:00:11.5]} 41. g5 {[%clk
0:01:27.6]} 41... exf5 {[%clk 0:00:09.2]} 42. exf5 {[%clk 0:01:27]} 42... f6
{[%clk 0:00:09.5]} 43. gxf6+ {[%clk 0:01:18.7]} 43... gxf6 {[%clk 0:00:09.6]}
44. Ng6+ {[%clk 0:01:19]} 44... Kf7 {[%clk 0:00:09]} 45. Nf4 {[%clk 0:01:19.5]}
45... Rb7 {[%clk 0:00:08.4]} 46. Nd5 {[%clk 0:01:18.2]} 46... Rb3+ {[%clk
0:00:07.6]} 47. Kf4 {[%clk 0:01:17.7]} 47... Rxc4# {[%clk 0:00:07.1]} 0-1

[Event "*** Titled Tuesday Blitz"]
[Site "Chess.com"]
[Date "2021.02.02"]
[Round "3"]
[White "HElissalt"]
[Black "Vamostodorecto"]
[Result "0-1"]
[WhiteElo "2236"]
[BlackElo "2461"]
[TimeControl "180+1"]
[EndTime "10:30:41 PST"]
[Termination "Vamostodorecto won by resignation"]

1. d4 {[%clk 0:03:00.9]} 1... Nf6 {[%clk 0:02:58.8]} 2. c4 {[%clk 0:02:59.8]}
2... g6 {[%clk 0:02:59.1]} 3. Nc3 {[%clk 0:02:57.5]} 3... d5 {[%clk 0:02:59.2]}
4. cxd5 {[%clk 0:02:55.5]} 4... Nxd5 {[%clk 0:03:00.1]} 5. Bd2 {[%clk
0:02:55.8]} 5... Bg7 {[%clk 0:02:59.3]} 6. e4 {[%clk 0:02:54.7]} 6... Nxc3
{[%clk 0:02:59.3]} 7. Bxc3 {[%clk 0:02:54.5]} 7... c5 {[%clk 0:03:00]} 8. d5
{[%clk 0:02:54.5]} 8... Bxc3+ {[%clk 0:03:00.5]} 9. bxc3 {[%clk 0:02:55.1]} 9...
O-O {[%clk 0:03:01]} 10. h4 {[%clk 0:02:54.5]} 10... e6 {[%clk 0:03:00.6]} 11.
h5 {[%clk 0:02:54.2]} 11... exd5 {[%clk 0:02:59.2]} 12. exd5 {[%clk 0:02:54.3]}
12... Qf6 {[%clk 0:01:55.8]} 13. Qd2 {[%clk 0:02:46.6]} 13... Re8+ {[%clk
0:01:51.5]} 14. Be2 {[%clk 0:02:42.9]} 14... b5 {[%clk 0:01:24.8]} 15. hxg6
{[%clk 0:02:36.1]} 15... hxg6 {[%clk 0:01:22.2]} 16. Kf1 {[%clk 0:02:36.1]}
16... b4 {[%clk 0:01:08.2]} 17. Qh6 {[%clk 0:02:17.9]} 17... Qg7 {[%clk
0:01:03]} 18. Qxg7+ {[%clk 0:02:09.3]} 18... Kxg7 {[%clk 0:01:03.9]} 19. cxb4
{[%clk 0:02:05.3]} 19... cxb4 {[%clk 0:01:04.7]} 20. Rh4 {[%clk 0:01:34.1]}
20... a5 {[%clk 0:01:03]} 21. Rc1 {[%clk 0:01:17.9]} 21... Ba6 {[%clk
0:01:01.9]} 22. Rd4 {[%clk 0:01:07.2]} 22... Nd7 {[%clk 0:00:59]} 23. Bxa6
{[%clk 0:00:58.8]} 23... Rxa6 {[%clk 0:00:59.9]} 24. Nf3 {[%clk 0:00:58.9]}
24... Rd6 {[%clk 0:00:57.3]} 25. Rc6 {[%clk 0:00:56.8]} 25... Rxc6 {[%clk
0:00:53.3]} 26. dxc6 {[%clk 0:00:56.9]} 26... Nb6 {[%clk 0:00:54]} 27. Rd6
{[%clk 0:00:34.7]} 27... Rc8 {[%clk 0:00:49.4]} 28. Ne5 {[%clk 0:00:31.7]} 28...
a4 {[%clk 0:00:44]} 29. Nd7 {[%clk 0:00:29.2]} 29... Nc4 {[%clk 0:00:41.5]} 30.
Rf6 {[%clk 0:00:13.3]} 30... b3 {[%clk 0:00:40.8]} 31. axb3 {[%clk 0:00:12.5]}
31... axb3 {[%clk 0:00:41.7]} 32. Rf3 {[%clk 0:00:09.9]} 32... Nd2+ {[%clk
0:00:39.8]} 0-1

[Event "*** Titled Tuesday Blitz"]
[Site "Chess.com"]
[Date "2021.02.02"]
[Round "3"]
[White "ErikBlomqvist"]
[Black "kamilianin235"]
[Result "1-0"]
[WhiteElo "2493"]
[BlackElo "2233"]
[TimeControl "180+1"]
[EndTime "10:30:43 PST"]
[Termination "ErikBlomqvist won by checkmate"]

1. e4 {[%clk 0:03:00.9]} 1... c5 {[%clk 0:02:59.3]} 2. Nf3 {[%clk 0:03:00.8]}
2... e6 {[%clk 0:02:59.4]} 3. g3 {[%clk 0:02:59.3]} 3... Nc6 {[%clk 0:02:58.3]}
4. Bg2 {[%clk 0:02:59.3]} 4... g6 {[%clk 0:02:58.3]} 5. d4 {[%clk 0:02:50.2]}
5... Bg7 {[%clk 0:02:59.2]} 6. d5 {[%clk 0:02:37]} 6... Nd4 {[%clk 0:02:43.5]}
7. Nxd4 {[%clk 0:02:25.8]} 7... cxd4 {[%clk 0:02:40.2]} 8. O-O {[%clk
0:02:25.9]} 8... Ne7 {[%clk 0:02:25.6]} 9. d6 {[%clk 0:02:02]} 9... Nc6 {[%clk
0:02:19.4]} 10. Nd2 {[%clk 0:01:39.2]} 10... O-O {[%clk 0:02:11.3]} 11. f4
{[%clk 0:01:26.5]} 11... e5 {[%clk 0:02:06.6]} 12. Nf3 {[%clk 0:01:09.2]} 12...
Qb6 {[%clk 0:01:50]} 13. Kh1 {[%clk 0:01:07.3]} 13... Qc5 {[%clk 0:01:36.3]} 14.
fxe5 {[%clk 0:00:56.7]} 14... Nxe5 {[%clk 0:01:33.6]} 15. Qxd4 {[%clk
0:00:46.8]} 15... Qxd4 {[%clk 0:01:20.6]} 16. Nxd4 {[%clk 0:00:47.7]} 16... Nc4
{[%clk 0:01:20.7]} 17. Nb5 {[%clk 0:00:45.9]} 17... a6 {[%clk 0:01:17.3]} 18.
Nc7 {[%clk 0:00:44.6]} 18... Rb8 {[%clk 0:01:16.7]} 19. Bg5 {[%clk 0:00:24.7]}
19... f6 {[%clk 0:00:57.5]} 20. Bf4 {[%clk 0:00:24.6]} 20... g5 {[%clk
0:00:56.9]} 21. Bc1 {[%clk 0:00:20.7]} 21... Nxd6 {[%clk 0:00:54.4]} 22. e5
{[%clk 0:00:18.2]} 22... fxe5 {[%clk 0:00:48.4]} 23. Bd5+ {[%clk 0:00:18]} 23...
Kh8 {[%clk 0:00:47.2]} 24. Rxf8+ {[%clk 0:00:18.7]} 24... Bxf8 {[%clk 0:00:47]}
25. Bxg5 {[%clk 0:00:19.6]} 25... b5 {[%clk 0:00:41.9]} 26. Rf1 {[%clk 0:00:17]}
26... Bg7 {[%clk 0:00:39.5]} 27. Be7 {[%clk 0:00:15.3]} 27... Nc4 {[%clk
0:00:36.7]} 28. Ne8 {[%clk 0:00:11.3]} 28... Ne3 {[%clk 0:00:33.5]} 29. Rf8+
{[%clk 0:00:11.4]} 29... Bxf8 {[%clk 0:00:27]} 30. Bf6+ {[%clk 0:00:11.6]} 30...
Bg7 {[%clk 0:00:26]} 31. Bxg7# {[%clk 0:00:12]} 1-0